Cogmind - Beta 13 @@@ ROGUE MODE // 2024.04.21 @ 20:24:07 Player: Gabe+Kate4EVR Result: Destroyed by G-34 Mercenary with Small Laser Performance ------------- Evolutions (1) 500 Regions Visited (3) 600 Robots Destroyed (20) 100 Value Destroyed (514) 514 Prototype IDs (4) 80 Alien Tech Used (0) 0 Bonus (0) 0 TOTAL SCORE: 1794 Bonus ------- None Cogmind --------- Core Integrity 0/400 Matter 220/300 Energy 97/100 System Corruption 0% Temperature Cool (6) Movement Core (150) Ox2 Location -9/Mines Parts ------- > --- POWER (1) -------- (None) > --- PROPULSION (4) --- (None) > --- UTILITY (2) ------ Small Storage Unit > --- WEAPON (2) ------- Battle Cannon > --- INVENTORY (8) ---- Terrain Scanner Peak State ------------ > --- POWER ------------ Improved Ion Engine > --- PROPULSION ------- Aluminum Leg Aluminum Leg > --- UTILITY ---------- Small Storage Unit Hardened Light Armor Plating > --- WEAPON ----------- Beam Rifle Improved Assault Rifle > --- INVENTORY -------- Wheel Compact Wheel Hardened Light Armor Plating Hardened Light Armor Plating Beam Rifle Beam Rifle Beam Rifle Mini Grenade Launcher [Rating: 13] Favorites ----------- Power Improved Ion Engine Engine Improved Ion Engine Propulsion Aluminum Leg Leg Aluminum Leg Wheel Compact Wheel Utility Small Storage Unit Device Terrain Scanner Storage Small Storage Unit Protection Hardened Light Armor Plating Weapon Beam Rifle Energy Gun Beam Rifle Ballistic Gun Assault Rifle Ballistic Cannon Battle Cannon Launcher Mini Grenade Launcher Special Weapon Mining Laser Build | -11 -10 -9 -9 ------- Run | Yrd Mat Mat Min Slots Evolved 2 | . . 2 . Power . | . . . . Propulsion 2 | . . 2 . Utility . | . . . . Weapon . | . . . . Parts Attached 32 | 6 2 22 2 Power 6 | 1 . 4 1 Engine 6 | 1 . 4 1 Core . | . . . . Reactor . | . . . . Propulsion 7 | 2 . 5 . Treads . | . . . . Leg 2 | 2 . . . Wheel 5 | . . 5 . Hover . | . . . . Flight . | . . . . Utility 7 | 1 1 5 . Device 1 | . . 1 . Storage 1 | 1 . . . Processor . | . . . . Hackware . | . . . . Protection 5 | . 1 4 . Artifact . | . . . . Weapon 12 | 2 1 8 1 Energy Gun 5 | 1 1 3 . Energy Cannon . | . . . . Ballistic Gun 2 | 1 . 1 . Ballistic Cannon 1 | . . . 1 Launcher 2 | . . 2 . Special Weapon 2 | . . 2 . Impact Weapon . | . . . . Slashing Weapon . | . . . . Piercing Weapon . | . . . . Special Melee Weapon . | . . . . Unidentified Prototypes 1 | . . 1 . Parts Lost 19 | . . 14 5 Power 2 | . . 1 1 Propulsion 6 | . . 5 1 Utility 3 | . . 2 1 Weapon 8 | . . 6 2 Highest Loss Streak 10 | . . 8 10 To Critical Strikes . | . . . . Average Slot Usage (%) 77 | . 98 70 22 Engine 10 | . 14 9 . Leg 17 | . 28 13 . Wheel 4 | . . 6 . Storage 11 | . 14 11 11 Protection 9 | . 12 8 3 Energy Gun 12 | . 14 12 . Ballistic Gun 8 | . 14 6 . Naked Turns . | . . . . Heaviest Build 23 | 14 20 23 19 Greatest Support 36 | 20 20 36 10 Greatest Overweight (x) 3 | 1 . 1 3 Average Overweight (x) . | . . . 1 Largest Inventory Capacity 8 | 8 8 8 8 Average Capacity 7 | 5 8 8 8 Most Carried 8 | 2 8 8 1 Average Carried 5 | . 7 5 1 Final Capacity 8 | 8 8 8 8 Final Carried 8 | 2 8 2 1 Class Distribution -------------------- 97% | Mutant Dominant Class ---------------- Mutant | -10/Materials Mutant | -9/Materials Mutant | -9/Mines Resources | -11 -10 -9 -9 ----------- Run | Yrd Mat Mat Min Matter Collected 564 | 197 56 311 . Remotely . | . . . . Salvage Created 606 | . 69 537 . Parts 27 | . 4 23 . Haulers Intercepted . | . . . . Recyclers Shooed 2 | . 2 . . Parts Field Recycled . | . . . . Retrieved Matter . | . . . . Parts Self-Destructed . | . . . . Prevented . | . . . . Kills | -11 -10 -9 -9 ------- Run | Yrd Mat Mat Min Combat Hostiles Destroyed 14 | . 4 9 1 Guns 10 | . 4 6 . Cannons 1 | . . . 1 AOE 2 | . . 2 . Classes Destroyed 8 | . 2 6 . Worker 1 | . . 1 . Builder 1 | . . 1 . Tunneler 1 | . . 1 . Recycler 1 | . . 1 . Watcher 2 | . . 2 . Swarmer 3 | . 3 . . Grunt 8 | . 1 6 1 Sentry 3 | . . 3 . Best Kill Streak 5 | . 3 5 1 Combat Bots Only 4 | . 3 4 1 Max Kills in Single Turn 2 | . 1 2 1 Gunslinging . | . . . . Exploded 1 | . . 1 . Melee . | . . . . Uniques/NPCs Destroyed . | . . . . Combat | -11 -10 -9 -9 -------- Run | Yrd Mat Mat Min Hostile Shots Fired 210 | . 24 144 42 Missed 37 | . 3 25 9 Damage Taken 2373 | . 174 1783 416 Core 404 | . . 279 125 Absorbed by Shields . | . . . . Core Remaining (%) 100 | 100 100 . . Volleys Fired 83 | . 13 63 7 Largest 2 | . 2 2 2 Hottest 200 | . 76 112 200 Shots Fired 140 | . 26 106 8 Gun 129 | . 26 103 . Cannon 5 | . . . 5 Launcher 3 | . . 3 . Special 3 | . . . 3 Kinetic 39 | . 13 21 5 Thermal 98 | . 13 82 3 Explosive 3 | . . 3 . Electromagnetic . | . . . . Robot Hit Streak 24 | . 4 24 14 Robot Miss Streak 3 | . 2 3 1 Penetration Max . | . . . . Secondary Targets . | . . . . Shots Hit Robots 105 | . 17 81 7 Core Hits 28 | . 4 23 1 Critical Kills . | . . . . Critical Parts Destroyed . | . . . . Critical Strikes 5 | . 1 4 . Burn 5 | . 1 4 . Melee Attacks . | . . . . Impact . | . . . . Slashing . | . . . . Piercing . | . . . . Sneak Attacks . | . . . . Combat Hostiles . | . . . . Follow-up Attacks . | . . . . Damage Inflicted 1819 | . 263 1372 184 Guns 1461 | . 263 1198 . Cannons 112 | . . . 112 Explosions 167 | . . 167 . Melee . | . . . . Ramming 7 | . . 7 . Kinetic 476 | . 89 275 112 Thermal 1169 | . 174 923 72 Explosive 167 | . . 167 . Electromagnetic . | . . . . Impact . | . . . . Slashing . | . . . . Piercing . | . . . . Highest Corruption . | . . . . Average Corruption . | . . . . Corruption Purged . | . . . . Corruption Blocked . | . . . . Overload Shots . | . . . . Overflow Damage . | . . . . Projectiles . | . . . . Explosions . | . . . . Melee . | . . . . Knockbacks . | . . . . Impact . | . . . . Kinetic . | . . . . Secondary . | . . . . Self-Inflicted Damage 6 | . . 6 . Shots 1 | . . 1 . Rammed 1 | . . 1 . Targets Rammed 5 | . . 5 . Kicked 4 | . . 4 . Crushed . | . . . . Highest Temperature 332 | . 276 332 154 Average Temperature 115 | . 130 114 85 Received Heat Transfer 954 | . 6 714 234 Effects 2 | . 1 1 . Energy Bleed 1 | . 1 . . Matter Decay 1 | . . 1 . Siege Activations . | . . . . Robots Corrupted . | . . . . Combat Hostiles . | . . . . Parts Fried . | . . . . Impact Corruptions . | . . . . Robots Melted 1 | . . 1 . Combat Hostiles 1 | . . 1 . Parts Melted 4 | . 1 3 . Heat Transferred 3332 | . 518 2664 150 Parts Sabotaged . | . . . . Parts Stolen . | . . . . Parts Stripped . | . . . . Power Chain Reactions . | . . . . Alert | -11 -10 -9 -9 ------- Run | Yrd Mat Mat Min Peak Influence 272 | . 119 272 86 Initial 86 | . . 50 86 Average 93 | . 63 127 50 Maximum Alert Level 1 | . . 1 . Low Security (%) 88 | 100 100 80 100 Level 1 11 | . . 19 . Level 2 . | . . . . Level 3 . | . . . . Level 4 . | . . . . Level 5 . | . . . . High Security . | . . . . Max Security . | . . . . Squads Dispatched 2 | . 1 1 . Investigation 1 | . 1 . . Extermination . | . . . . Reinforcement 1 | . . 1 . Assault . | . . . . Garrison . | . . . . Intercept . | . . . . Searches Triggered . | . . . . Construction Impeded 1 | . . 1 . Haulers Reinforced . | . . . . Active Scanning Responses . | . . . . Cargo Convoy Interrupts . | . . . . Stealth | -11 -10 -9 -9 --------- Run | Yrd Mat Mat Min Distress Signals 2 | . . 2 . Communications Jammed . | . . . . Distress Signals . | . . . . Times Spotted 30 | . 5 22 3 Peak Tracking Total 9 | . 3 9 3 Tactical Retreats 3 | . . 3 . Traps | -11 -10 -9 -9 ------- Run | Yrd Mat Mat Min Traps Triggered 3 | . 1 2 . Indirectly . | . . . . Trap Hack Attempts . | . . . . Triggered . | . . . . Disarmed . | . . . . Reprogrammed . | . . . . Reused . | . . . . Traps Extracted . | . . . . Installed . | . . . . Triggered . | . . . . Machines | -11 -10 -9 -9 ---------- Run | Yrd Mat Mat Min Machines Disabled . | . . . . Max in Single Turn . | . . . . Machines Repaired . | . . . . Machines Dismantled . | . . . . Machines Sabotaged . | . . . . Overloaded Fab Kills . | . . . . Hacking | -11 -10 -9 -9 --------- Run | Yrd Mat Mat Min Machines Accessed 5 | . 1 4 . Terminals 5 | . 1 4 . Fabricators . | . . . . Repair Stations . | . . . . Recycling Units . | . . . . Scanalyzers . | . . . . Garrison Access . | . . . . Total Hacks 8 | . 3 5 . Successful 4 | . 1 3 . Failed 4 | . 2 2 . Catastrophic 1 | . 1 . . Database Lockouts . | . . . . Manual 3 | . . 3 . Terminals 8 | . 3 5 . Fabricators . | . . . . Repair Stations . | . . . . Recycling Units . | . . . . Scanalyzers . | . . . . Garrison Access . | . . . . Terminal Hacks 4 | . 1 3 . Prototype ID Bank 1 | . 1 . . Branch Access Points 1 | . . 1 . Alert Level 1 | . . 1 . Unreport Threat 1 | . . 1 . Fabricator Hacks . | . . . . Repair Station Hacks . | . . . . Recycling Unit Hacks . | . . . . Scanalyzer . | . . . . Garrison Access Hacks . | . . . . Unauthorized Hacks . | . . . . Terminals . | . . . . Fabricators . | . . . . Repair Stations . | . . . . Recycling Units . | . . . . Scanalyzers . | . . . . Garrison Access . | . . . . Data Cores Recovered . | . . . . Used . | . . . . Hacking Detections 2 | . 1 1 . Full Trace Events 1 | . 1 . . Feedback Events . | . . . . Feedback Blocked . | . . . . Robot Schematics Acquired . | . . . . Robots Built . | . . . . Authchips . | . . . . Time . | . . . . Total Robot Build Rating . | . . . . Part Schematics Acquired . | . . . . Parts Built . | . . . . Authchips . | . . . . Time . | . . . . Total Part Build Rating . | . . . . Parts Repaired . | . . . . Time . | . . . . Parts Recycled . | . . . . Recycled Matter . | . . . . Retrieved Matter . | . . . . Retrieved Components . | . . . . Parts Scanalyzed . | . . . . Part Schematics Acquired . | . . . . Parts Damaged . | . . . . Bothacking | -11 -10 -9 -9 ------------ Run | Yrd Mat Mat Min Used RIF Installer . | . . . . Robots Hacked . | . . . . Non-combat . | . . . . Combat . | . . . . Robot Hacks Applied . | . . . . Relay Couplers Released . | . . . . Fabnet Peak Effective % . | . . . . Robots Rewired . | . . . . Allies Hacked . | . . . . Hacks Repelled . | . . . . Allies | -11 -10 -9 -9 -------- Run | Yrd Mat Mat Min Total Allies . | . . . . Largest Group . | . . . . Highest-Rated Group . | . . . . Highest-Rated Ally . | . . . . Total Orders . | . . . . Ally Attacks . | . . . . Total Damage . | . . . . Kills . | . . . . Allies Corrupted . | . . . . Allies Melted . | . . . . Intel | -11 -10 -9 -9 ------- Run | Yrd Mat Mat Min Robot Analysis Total . | . . . . Derelict Logs Recovered . | . . . . Drone Launches . | . . . . Drone Recoveries . | . . . . Exploration | -11 -10 -9 -9 ------------- Run | Yrd Mat Mat Min Turns Passed 1126 | 127 304 659 36 Spaces Moved 585 | 100 211 263 11 Core 17 | 6 . 1 10 Treads . | . . . . Legs 467 | 94 211 162 . Wheels 101 | . . 100 1 Hover . | . . . . Flight . | . . . . Fastest Speed 50 | 50 120 80 95 Average Speed 134 | 116 120 152 126 Slowest Speed 200 | 120 120 190 200 Overloaded Moves . | . . . . Propulsion Burnouts . | . . . . Robots Hopped . | . . . . Cave-ins Triggered . | . . . . Exploration Rate (%) 20 | 5 38 32 5 Regions Visited 3 Branch Regions 1 Pre-discovered Areas . | . . . . Known Exits Taken 1 | . . 1 . Unknown Exits Taken 2 | 1 1 . . Scrap Searched . | . . . . Spaces Dug . | . . . . Terrain Destroyed 35 | . . 35 . Melee . | . . . . Projectile . | . . . . AOE 35 | . . 35 . Terrain Rammed . | . . . . Walls Destroyed . | . . . . Machines Disabled . | . . . . Actions | -11 -10 -9 -9 --------- Run | Yrd Mat Mat Min Total 767 | 107 238 402 20 Wait 51 | . 4 47 . Move 582 | 99 210 262 11 Hop . | . . . . Pick Up 9 | 2 7 . . Fast Attach 19 | 6 1 11 1 Attach 8 | . . 7 1 Detach 1 | . . 1 . Swap 5 | . 1 4 . Drop 4 | . 2 2 . Fire 83 | . 13 63 7 Melee . | . . . . Ram 1 | . . 1 . Kick 4 | . . 4 . Crush . | . . . . Escape Stasis . | . . . . Rewire . | . . . . Trap . | . . . . Miscellaneous . | . . . . Route ------- -11/Scrapyard -10/Materials (discovered 2 exits: *Mat / [*Min]) -9/Materials -9/Mines History --------- Turn | Location | Event 12 | -11/Scrapyard | Discovered new exit (range 15) 128 | -11/Scrapyard | Entered Materials 314 | -10/Materials | Build established: Mutant 329 | -10/Materials | Discovered new exit (range 8) 396 | -10/Materials | Discovered new exit (range 11) 432 | -10/Materials | Entered another Materials area 432 | -9/Materials | Evolved 2 slots: Propulsion x2 690 | -9/Materials | Identified exit to Mines 898 | -9/Materials | Lost 8 parts (1p3n1u3w) 965 | -9/Materials | Core integrity fell below 50% 1091 | -9/Materials | Entered Mines 1109 | -9/Mines | Core integrity fell below 20% 1112 | -9/Mines | A weapon hastily lodged in a ceiling crevice suddenly fell to the ground 1127 | -9/Mines | Destroyed by G-34 Mercenary with Small Laser Last Messages --------------- 01075_ Acquired Lgt. Ion Engine. 01075_ K-01 Serf collects debris. 01077_ Triggered Blade Trap. 01077_ Massive razor-sharp blades shoot up from within the floor. 01077_ Lgt. Ion Engine severed. 01077_ R-06 Scavenger collects Lgt. Ion Engine. 01084_ Acquired Mining Laser. LOCATION=MINES GOAL=ESCAPE Something is scanning the area. 01093_ Imp. Ion Engine destroyed. 01095_ Wheel destroyed. 01099_ Mining Laser destroyed. 01107_ Hrd. Light Armor Plating destroyed. 01108_ G-34 Mercenary heat spikes uncontrollably. 01112_ A Battle Cannon has been hastily shoved under some rubble with a note attached: "To battle!" 01114_ Acquired Battle Cannon. 01115_ G-34 Mercenary heat short circuits Aluminum Leg. 01121_ G-34 Mercenary destroyed. Map ----- +----------------------------------------------------+ | ??????????????????????????????????? | | ??????????????????????????????????? | | ??????????????????????????????????? | | ??????????????????????????????????? | | ??????????????????????????????????? | | ??????????????????????????????????? | | ??????????????????????????????????? | | ??????????????????????????????????? | | ??????????????????????????????????? | | ??????????????????????????????????? | | ??????????????????????????????????? | | ??????????? ?????????????????????? | | ??????????? ?????????????????????? | | ??????????? #????????????????????? | | ??????????? #????????????????????? | | ??????????# #????????????????????? | | ?????????? #????????????????????? | | ??????????# #????????????????????? | | ??????????# #????????????????????? | | ??????????# #????????????????????? | | ??????????# #????????????????????? | | ??????????#$ #????????????????????? | | ?????????? ##???????????????????? | | ??######??# ##??????????????????? | | ?## #### #??????????????????? | | ?#T %g@ #??????????????????? | | ??# ##g ##??????????????????? | | ??# ##%% ##???????????????????? | | ??# ### ##????????????????????? | | ??# #?####?????????????????????? | | ??# #??????????????????????????? | | ??######??????????????????????????? | | ??????????????????????????????????? | | ??????????????????????????????????? | | | | | | | | | | | | | | | | | | | | | | | | | | | | | | | | | +----------------------------------------------------+ Best States ------------- Heat Dissipation 28 Energy Generation 12 Energy Capacity 265 Matter Stores 300 Matter Capacity 300 Sight Range 16 Terrain Scan Range 14 Terrain Scan Density 10 Armor Coverage 150 Evasion (%) 55 Item Schematics ----------------- None Robot Schematics ------------------ None Fabricated ------------ Nothing Alien Tech Used ----------------- None Achievements -------------- None Challenges ------------ None Game ------ Seed MakeshiftBiocellProjector Manual? 0 Play Time 00:08:20 Cumulative 110.6 hours Start 2024.04.21 @ 15:58:22 End 2024.04.21 @ 20:24:07 Sessions 2 Manual Loads 0 Difficulty Rogue Special Mode None Game No. 229 Rogue 229 Adventurer 0 Explorer 0 Win Type - Total 0 Types 0/0/0/0/0/0/0/0/0 Lore% 32 Gallery% 51 Achievement% 35 Wizard Run 0 Options --------- Layout 0 ASCII 0 Keyboard 1 Movement Numpad Keybinds 0 Fullscreen 2 Font 18/X11 Map View 76x50 Zoom Use 0% Tactical HUD 1 Map Filters NONE Filters NONE Steam 1 RUN: 64ba9756-e5aa-49e5-a90f-4e835a8b090e